fUST/lending_fUST_20240511
["ID","MTS","AMOUNT","RATE_DAILY","PERIOD"]
[326814915,1715424755900,-17580.0,0.000405,120]
[326814916,1715424755923,-500.0,0.00041096,31]
[326814917,1715424755945,-500.0,0.00041096,31]
[326814918,1715424755967,-500.0,0.00041096,31]
[326814919,1715424755989,-500.0,0.00041096,31]
[326814920,1715424756011,-500.0,0.00041096,31]
[326814921,1715424756034,-500.0,0.00041096,31]
[326814922,1715424756056,-500.0,0.00041096,31]
[326814923,1715424756077,-500.0,0.00041096,31]
[326814924,1715424756098,-500.0,0.00041096,31]
[326814925,1715424756120,-500.0,0.00041096,31]
[326814926,1715424756142,-500.0,0.00041096,31]
[326814927,1715424756165,-500.0,0.00041096,31]
[326814928,1715424756186,-266.56619633,0.00041096,31]
[326814929,1715424756208,-500.0,0.00041096,31]
[326814930,1715424756231,-3984.03218705,0.00042,60]
[326814931,1715424756399,-1698.25938138,0.000425,30]
[326814932,1715424756421,-5611.5591299,0.00043,30]
[326814933,1715424756443,-216.19418135,0.00043,120]
[326814934,1715424756466,-200.0,0.00044024,120]
[326814935,1715424756490,-696.9078096,0.00045,120]
[326814936,1715424756513,-151.0,0.00045,120]
[326814937,1715424756535,-11174.79622572,0.00045,120]
[326814938,1715424756558,-2251.44747564,0.0004678,120]
[326814939,1715424756582,-4841.04209627,0.00046982,103]
[326814940,1715424756604,-170.0,0.00047,90]
[326814941,1715424756628,-151.0,0.00049068,120]
[326814942,1715424756651,-68198.84159487,0.00049313,120]
[326814943,1715424756674,-1045.6347658,0.000499,110]
[326814944,1715424756697,-403.55519046,0.000499,74]
[326814945,1715424756719,-5000.0,0.0005,45]
[326814946,1715424756742,-151.0,0.0005,120]
[326814947,1715424756764,-1000.0,0.0005,120]
[326814948,1715424756786,-254.49120544,0.0005,120]
[326814949,1715424756810,-160.80168946,0.000518,120]
[326814950,1715424756834,-1000.0,0.00052054,120]
[326814951,1715424756856,-1000.0,0.00052054,120]
[326814952,1715424756879,-1069.52512308,0.00052054,120]
[326814953,1715424756901,-2000.0,0.00052055,90]
[326814954,1715424756923,-2000.0,0.00052055,90]
[326814955,1715424756946,-5000.0,0.00053,120]
[326814956,1715424756967,-7216.41516785,0.00053,120]
[326814957,1715424762369,-200000.0,0.00041431,30]
[326814958,1715424765067,-122256.78272315,0.00053,120]
[326814959,1715424765090,-1000.0,0.00053,120]
[326814960,1715424765111,-2074.09476828,0.00053,120]
[326814961,1715424765135,-151.0,0.00053151,120]
[326814962,1715424765159,-1363.5898936,0.00053244,60]
[326814963,1715424765320,-200.0,0.00053334,120]
[326814964,1715424765349,-747.51194292,0.00053753,60]
[326814965,1715424765372,-151.00914303,0.00053823,60]
[326814966,1715424765394,-747.51194292,0.00053826,60]
[326814967,1715424765416,-1460.85,0.00054,120]
[326814968,1715424765439,-176.10256355,0.00054,120]
[326814969,1715424765461,-31468.0,0.00054,30]
[326814970,1715424765486,-1363.5898936,0.00054248,60]
[326814971,1715424765508,-151.00914303,0.0005452,60]
[326814972,1715424765531,-500.0,0.00054794,120]
[326814973,1715424765553,-500.0,0.00054794,120]
[326814974,1715424765578,-616.01894515,0.00054794,120]
[326814975,1715424765601,-500.0,0.00054794,120]
[326814976,1715424765624,-619.86,0.00054794,120]
[326814977,1715424765648,-333.69506326,0.00054794,120]
[326814978,1715424765671,-500.0,0.00054794,120]
[326814979,1715424765693,-301.76111855,0.00054794,120]
[326814980,1715424765717,-500.0,0.00054794,120]
[326814981,1715424765740,-500.0,0.00054794,120]
[326814982,1715424765762,-500.0,0.00054794,120]
[326814983,1715424765784,-500.0,0.00054794,120]
[326814984,1715424765806,-500.0,0.00054794,120]
[326814985,1715424765828,-500.0,0.00054794,120]
[326814986,1715424765850,-500.0,0.00054794,120]
[326814987,1715424765872,-364.72821729,0.00054794,120]
[326814988,1715424765893,-500.0,0.00054794,120]
[326814989,1715424765915,-500.0,0.00054794,120]
[326814990,1715424765937,-187.79952092,0.00054794,120]
[326814991,1715424765959,-500.0,0.00054794,120]
[326814992,1715424765980,-500.0,0.00054794,120]
[326814993,1715424766003,-644.44,0.00054794,120]
[326814994,1715424766025,-645.61,0.00054794,120]
[326814995,1715424766047,-586.12719102,0.00054794,120]
[326814996,1715424766069,-500.0,0.00054794,120]
[326814997,1715424766090,-501.7762172,0.00054794,120]
[326814998,1715424766112,-500.0,0.00054794,120]
[326814999,1715424766134,-666.95,0.00054794,120]
[326815000,1715424766156,-776.99,0.00054794,120]
[326815001,1715424766178,-500.0,0.00054794,120]
[326815002,1715424766200,-151.0,0.00054794,120]
[326815003,1715424766224,-583.2,0.00054794,120]
[326815004,1715424766246,-601.14,0.00054794,120]
[326815005,1715424766268,-1141.35,0.00054794,120]
[326815006,1715424766290,-500.0,0.00054794,120]
[326815007,1715424766312,-500.0,0.00054794,120]
[326815008,1715424766334,-500.0,0.00054794,120]
[326815009,1715424766356,-500.0,0.00054794,120]
[326815010,1715424766379,-500.0,0.00054794,120]
[326815011,1715424766401,-500.0,0.00054794,120]
[326815012,1715424766424,-248.50871379,0.00054794,120]
[326815013,1715424766446,-500.0,0.00054794,120]
[326815014,1715424766469,-500.0,0.00054794,120]
[326815015,1715424766492,-500.0,0.00054794,120]
[326815016,1715424766515,-500.0,0.00054794,120]
[326815017,1715424766539,-500.0,0.00054794,120]
[326815018,1715424766563,-301.93218001,0.00054794,120]
[326815019,1715424766588,-291.76499862,0.00054794,120]
[326815020,1715424766611,-500.0,0.00054794,120]
[326815021,1715424766634,-295.10727738,0.00054794,120]
[326815022,1715424766658,-500.0,0.00054794,120]
[326815023,1715424766682,-500.0,0.00054794,120]
[326815024,1715424766707,-186.26377739,0.00054794,120]
[326815025,1715424766730,-500.0,0.00054794,120]
[326815026,1715424766752,-500.0,0.00054794,120]
[326815027,1715424766775,-500.0,0.00054794,120]
[326815028,1715424766800,-500.0,0.00054794,120]
[326815029,1715424766823,-500.0,0.00054794,120]
[326815030,1715424766848,-500.0,0.00054794,120]
[326815031,1715424766871,-500.0,0.00054794,120]
[326815032,1715424766894,-513.77029896,0.00054794,120]
[326815033,1715424766916,-500.0,0.00054794,120]
[326815034,1715424766939,-500.0,0.00054794,120]
[326815035,1715424766962,-500.0,0.00054794,120]
[326815036,1715424766984,-613.05,0.00054794,120]
[326815037,1715424767007,-391.25499913,0.00054794,120]
[326815038,1715424767029,-500.0,0.00054794,120]
[326815039,1715424767052,-568.29,0.00054794,120]
[326815040,1715424767074,-650.37,0.00054794,120]
[326815041,1715424767097,-500.0,0.00054794,120]
[326815042,1715424767120,-500.0,0.00054794,120]
[326815043,1715424767142,-500.0,0.00054794,120]
[326815044,1715424767163,-500.0,0.00054794,120]
[326815045,1715424767187,-406.18946725,0.00054794,120]
[326815046,1715424770952,-41361.57328514,0.00041431,30]
[326815047,1715424770974,-5000.0,0.00041431,30]
[326815048,1715424773731,-1500.0013388,0.0005351,60]
[326815049,1715424773755,-1500.0013388,0.00054266,60]
[326815050,1715424773778,-1500.0013388,0.00054463,60]
[326815051,1715424773801,-137.78053275,0.00054794,120]
[326815052,1715424773826,-624.63,0.00054794,120]
[326815053,1715424773849,-500.0,0.00054794,120]
[326815054,1715424773871,-567.33,0.00054794,120]
[326815055,1715424773893,-500.0,0.00054794,120]
[326815056,1715424773917,-500.0,0.00054794,120]
[326815057,1715424773939,-500.0,0.00054794,120]
[326815058,1715424773964,-500.0,0.00054794,120]
[326815059,1715424773986,-500.0,0.00054794,30]
[326815060,1715424774009,-500.0,0.00054794,120]
[326815061,1715424774044,-591.66101436,0.00054794,120]
[326815062,1715424774254,-500.0,0.00054794,120]
[326815063,1715424774279,-500.0,0.00054794,120]
[326815064,1715424774302,-550.0,0.00054794,120]
[326815065,1715424774324,-500.0,0.00054794,120]
[326815066,1715424774348,-500.0,0.00054794,120]
[326815067,1715424774372,-206.45169197,0.00054794,120]
[326815068,1715424774394,-500.0,0.00054794,120]
[326815069,1715424774416,-500.0,0.00054794,120]
[326815070,1715424774440,-500.0,0.00054794,120]
[326815071,1715424774463,-500.0,0.00054794,120]
[326815072,1715424774485,-500.0,0.00054794,120]
[326815073,1715424774507,-500.0,0.00054794,120]
[326815074,1715424774530,-222.12568882,0.00054794,120]
[326815075,1715424774552,-824.84,0.00054794,120]
[326815076,1715424774575,-277.73556071,0.00054794,120]
[326815077,1715424774599,-344.33977674,0.00054794,120]
[326815078,1715424774624,-472.53915459,0.00054794,120]
[326815079,1715424774648,-500.0,0.00054794,120]
[326815080,1715424774672,-490.16560761,0.00054794,120]
[326815081,1715424774695,-356.14906735,0.00054794,120]
[326815082,1715424774719,-295.50971273,0.00054794,120]
[326815083,1715424774744,-500.0,0.00054794,120]
[326815084,1715424774767,-500.0,0.00054794,120]
[326815085,1715424774790,-500.0,0.00054794,120]
[326815086,1715424774815,-544.96,0.00054794,120]
[326815087,1715424774839,-451.18777312,0.00054794,120]
[326815088,1715424774861,-500.0,0.00054794,120]
[326815089,1715424774885,-732.51,0.00054794,120]
[326815090,1715424774912,-500.0,0.00054794,120]
[326815091,1715424774936,-500.0,0.00054794,120]
[326815092,1715424774961,-500.0,0.00054794,120]
[326815093,1715424774986,-183.1610377,0.00054794,120]
[326815094,1715424775011,-500.0,0.00054794,120]
[326815095,1715424775037,-798.54,0.00054794,120]
[326815096,1715424775061,-472.65970915,0.00054794,120]
[326815097,1715424775085,-620.98,0.00054794,120]
[326815098,1715424775108,-500.0,0.00054794,120]
[326815099,1715424775133,-528.85,0.00054794,120]
[326815100,1715424775158,-1324.59,0.00054794,120]
[326815101,1715424775182,-399.86196726,0.00054794,120]
[326815102,1715424775205,-500.0,0.00054794,120]
[326815103,1715424775229,-500.0,0.00054794,120]
[326815104,1715424775253,-725.69,0.00054794,120]
[326815105,1715424775276,-651.31,0.00054794,120]
[326815106,1715424775296,-500.0,0.00054794,120]
[326815107,1715424775314,-500.0,0.00054794,120]
[326815108,1715424775336,-509.74,0.00054794,120]
[326815109,1715424775358,-500.0,0.00054794,120]
[326815110,1715424775381,-500.0,0.00054794,120]
[326815111,1715424775403,-500.0,0.00054794,120]
[326815112,1715424775426,-500.0,0.00054794,120]
[326815113,1715424775449,-500.0,0.00054794,120]
[326815114,1715424775472,-500.0,0.00054794,120]
[326815115,1715424775496,-473.28462151,0.00054794,120]
[326815116,1715424775521,-500.0,0.00054794,120]
[326815117,1715424775545,-500.0,0.00054794,120]
[326815118,1715424775570,-500.0,0.00054794,120]
[326815119,1715424775594,-500.0,0.00054794,120]
[326815120,1715424775617,-608.86,0.00054794,120]
[326815121,1715424775640,-362.41697397,0.00054794,120]
[326815122,1715424775666,-500.0,0.00054794,120]
[326815123,1715424775689,-1166.65,0.00054794,120]
[326815124,1715424775712,-1037.25,0.00054794,120]
[326815125,1715424775739,-1572.08,0.00054794,120]
[326815126,1715424775764,-587.5,0.00054794,120]
[326815127,1715424775789,-500.0,0.00054794,120]
[326815128,1715424775815,-500.0,0.00054794,120]
[326815129,1715424775841,-500.0,0.00054794,120]
[326815130,1715424775866,-500.0,0.00054794,120]
[326815131,1715424775891,-500.0,0.00054794,120]
[326815132,1715424775917,-500.0,0.00054794,120]
[326815133,1715424775943,-500.0,0.00054794,120]
[326815134,1715424775967,-502.18153365,0.00054794,120]
[326815135,1715424775991,-500.0,0.00054794,120]
[326815136,1715424776015,-500.0,0.00054794,120]
[326815137,1715424776042,-500.0,0.00054794,120]
[326815138,1715424776067,-500.0,0.00054794,120]
[326815139,1715424776092,-500.0,0.00054794,120]
[326815140,1715424776116,-545.07,0.00054794,120]
[326815141,1715424776141,-592.65,0.00054794,120]
[326815142,1715424776166,-500.0,0.00054794,120]
[326815143,1715424776190,-500.0,0.00054794,120]
[326815144,1715424776213,-318.66384086,0.00054794,120]
[326815145,1715424776237,-1000.0,0.00054794,120]
[326815146,1715424776267,-613.1,0.00054794,120]
[326815147,1715424776291,-500.0,0.00054794,120]
[326815148,1715424776314,-495.20149171,0.00054794,120]
[326815149,1715424776337,-500.0,0.00054794,120]
[326815150,1715424776361,-500.0,0.00054794,120]
[326815151,1715424776385,-500.0,0.00054794,120]
[326815152,1715424776407,-499.91190713,0.00054794,120]
[326815153,1715424776430,-500.0,0.00054794,120]
[326815154,1715424776453,-500.0,0.00054794,120]
[326815155,1715424776476,-500.0,0.00054794,120]
[326815156,1715424776624,-500.0,0.00054794,120]
[326815157,1715424776648,-657.53,0.00054794,120]
[326815158,1715424776672,-247.03869291,0.00054794,120]
[326815159,1715424776695,-151.12000818,0.00054794,120]
[326815160,1715424776719,-715.24,0.00054794,120]
[326815161,1715424776741,-795.67,0.00054794,120]
[326815162,1715424776764,-500.0,0.00054794,120]
[326815163,1715424776787,-500.0,0.00054794,120]
[326815164,1715424776810,-500.0,0.00054794,120]
[326815165,1715424776832,-500.0,0.00054794,120]
[326815166,1715424776855,-500.0,0.00054794,120]
[326815167,1715424776878,-464.80768057,0.00054794,120]
[326815168,1715424776900,-500.0,0.00054794,120]
[326815169,1715424776924,-500.0,0.00054794,120]
[326815170,1715424776947,-500.0,0.00054794,120]
[326815171,1715424776970,-500.0,0.00054794,120]
[326815172,1715424776993,-500.0,0.00054794,120]
[326815173,1715424777016,-389.74218724,0.00054794,120]
[326815174,1715424777039,-500.0,0.00054794,120]
[326815175,1715424777062,-500.0,0.00054794,120]
[326815176,1715424777085,-500.0,0.00054794,120]
[326815177,1715424777109,-418.39739456,0.00054794,120]
[326815178,1715424777131,-500.0,0.00054794,120]
[326815179,1715424777154,-500.0,0.00054794,120]
[326815180,1715424777177,-500.0,0.00054794,120]
[326815181,1715424777201,-500.0,0.00054794,120]
[326815182,1715424777224,-396.2275395,0.00054794,120]
[326815183,1715424777247,-500.0,0.00054794,120]
[326815184,1715424777268,-310.93919829,0.00054794,120]
[326815185,1715424777289,-500.0,0.00054794,120]
[326815186,1715424777312,-500.0,0.00054794,120]
[326815187,1715424777334,-500.0,0.00054794,120]
[326815188,1715424777357,-500.0,0.00054794,120]
[326815189,1715424777381,-512.32531252,0.00054794,120]
[326815190,1715424777403,-592.26,0.00054794,120]
[326815191,1715424777425,-500.0,0.00054794,120]
[326815192,1715424777447,-168.83852674,0.00054794,120]
[326815193,1715424777469,-500.0,0.00054794,120]
[326815194,1715424777491,-276.8553078,0.00054794,120]
[326815195,1715424777512,-500.0,0.00054794,120]
[326815196,1715424777535,-615.96,0.00054794,120]
[326815197,1715424777557,-500.0,0.00054794,120]
[326815198,1715424777583,-846.63,0.00054794,120]
[326815199,1715424777606,-500.0,0.00054794,120]
[326815200,1715424777631,-500.0,0.00054794,120]
[326815201,1715424777655,-500.0,0.00054794,120]
[326815202,1715424777688,-582.88,0.00054794,120]
[326815203,1715424777723,-232.11425661,0.00054794,120]
[326815204,1715424777757,-500.0,0.00054794,120]
[326815205,1715424777790,-500.0,0.00054794,120]
[326815206,1715424777829,-699.33,0.00054794,120]
[326815207,1715424777858,-266.07872338,0.00054794,120]
[326815208,1715424777892,-500.0,0.00054794,120]
[326815209,1715424777921,-721.98,0.00054794,120]
[326815210,1715424777954,-310.39738421,0.00054794,120]
[326815211,1715424777987,-500.0,0.00054794,120]
[326815212,1715424778017,-1357.25,0.00054794,120]
[326815213,1715424778046,-500.0,0.00054794,120]
[326815214,1715424778078,-1439.92,0.00054794,120]
[326815215,1715424778108,-1641.93,0.00054794,120]
[326815216,1715424778135,-222.99407488,0.00054794,120]
[326815217,1715424778161,-500.0,0.00054794,120]
[326815218,1715424778189,-897.9,0.00054794,120]
[326815219,1715424778218,-1414.4,0.00054794,120]
[326815220,1715424778246,-495.75822648,0.00054794,120]
[326815221,1715424778275,-500.0,0.00054794,120]
[326815222,1715424778303,-500.0,0.00054794,120]
[326815223,1715424778333,-500.0,0.00054794,120]
[326815224,1715424778361,-500.0,0.00054794,120]
[326815225,1715424778390,-581.57,0.00054794,120]
[326815226,1715424778418,-500.0,0.00054794,120]
[326815227,1715424778446,-500.0,0.00054794,120]
[326815228,1715424778476,-500.0,0.00054794,120]
[326815229,1715424778504,-1267.55,0.00054794,120]
[326815230,1715424778532,-500.0,0.00054794,120]
[326815231,1715424778561,-796.6,0.00054794,120]
[326815232,1715424778590,-345.04259284,0.00054794,120]
[326815233,1715424778620,-500.0,0.00054794,120]
[326815234,1715424778650,-1463.71,0.00054794,120]
[326815235,1715424778680,-616.43,0.00054794,120]
[326815236,1715424778708,-500.0,0.00054794,120]
[326815237,1715424778740,-1459.58,0.00054794,120]
[326815238,1715424778768,-500.0,0.00054794,120]
[326815239,1715424778798,-500.0,0.00054794,120]
[326815240,1715424778827,-500.0,0.00054794,120]
[326815241,1715424778855,-428.96399188,0.00054794,120]
[326815242,1715424778884,-885.97,0.00054794,120]
[326815243,1715424778913,-500.0,0.00054794,120]
[326815244,1715424778936,-500.0,0.00054794,120]
[326815245,1715424778959,-566.88163112,0.00054794,120]
[326815246,1715424778981,-671.05,0.00054794,120]
[326815247,1715424779201,-500.0,0.00054794,120]
[326815248,1715424779226,-500.0,0.00054794,120]
[326815249,1715424779250,-500.0,0.00054794,120]
[326815250,1715424779274,-500.0,0.00054794,120]
[326815251,1715424779297,-233.6001917,0.00054794,120]
[326815252,1715424779320,-500.0,0.00054794,120]
[326815253,1715424779342,-325.530487,0.00054794,120]
[326815254,1715424779364,-500.0,0.00054794,120]
[326815255,1715424779386,-500.0,0.00054794,120]
[326815256,1715424779408,-578.86,0.00054794,120]
[326815257,1715424779431,-500.0,0.00054794,120]
[326815258,1715424779459,-500.0,0.00054794,120]
[326815259,1715424779481,-500.0,0.00054794,120]
[326815260,1715424779504,-231.5097624,0.00054794,120]
[326815261,1715424779528,-1324.68,0.00054794,120]
[326815262,1715424779550,-822.58,0.00054794,120]
[326815263,1715424779575,-620.92,0.00054794,120]
[326815264,1715424779598,-500.0,0.00054794,120]
[326815265,1715424779621,-739.62,0.00054794,120]
[326815266,1715424779646,-313.65266661,0.00054794,120]
[326815267,1715424779669,-500.0,0.00054794,120]
[326815268,1715424779692,-741.92,0.00054794,120]
[326815269,1715424779714,-500.0,0.00054794,120]
[326815270,1715424779738,-500.0,0.00054794,120]
[326815271,1715424779760,-279.8367513,0.00054794,120]
[326815272,1715424779783,-587.20721475,0.00054794,120]
[326815273,1715424779807,-500.0,0.00054794,120]
[326815274,1715424779830,-959.03,0.00054794,120]
[326815275,1715424779852,-427.33994269,0.00054794,120]
[326815276,1715424779876,-500.0,0.00054794,120]
[326815277,1715424779901,-500.0,0.00054794,120]
[326815278,1715424779925,-500.0,0.00054794,120]
[326815279,1715424779948,-3331.73,0.00054794,120]
[326815280,1715424779971,-318.3321164,0.00054794,120]
[326815281,1715424779994,-241.51583648,0.00054794,120]
[326815282,1715424780018,-500.0,0.00054794,120]
[326815283,1715424780042,-547.97419295,0.00054794,120]
[326815284,1715424780065,-500.0,0.00054794,120]
[326815285,1715424780088,-500.0,0.00054794,120]
[326815286,1715424780111,-240.70019988,0.00054794,120]
[326815287,1715424780134,-446.56767771,0.00054794,120]
[326815288,1715424780156,-846.15,0.00054794,120]
[326815289,1715424780179,-174.25315648,0.00054794,120]
[326815290,1715424780201,-450.67318022,0.00054794,120]
[326815291,1715424780225,-500.0,0.00054794,120]
[326815292,1715424780249,-444.47038007,0.00054794,120]
[326815293,1715424780271,-648.48,0.00054794,120]
[326815294,1715424780294,-314.9400637,0.00054794,120]
[326815295,1715424780318,-500.0,0.00054794,120]
[326815296,1715424780340,-216.59046951,0.00054794,120]
[326815297,1715424780363,-1000.0,0.00054794,120]
[326815298,1715424780387,-500.0,0.00054794,120]
[326815299,1715424780410,-154.82895783,0.00054794,120]
[326815300,1715424780434,-220.69708212,0.00054794,120]
[326815301,1715424780457,-586.74,0.00054794,120]
[326815302,1715424780481,-500.0,0.00054794,120]
[326815303,1715424780504,-999.86,0.00054794,120]
[326815304,1715424780527,-534.43,0.00054794,120]
[326815305,1715424780549,-1248.58,0.00054794,120]
[326815306,1715424780572,-1183.29,0.00054794,120]
[326815307,1715424780596,-1471.75,0.00054794,120]
[326815308,1715424780620,-500.0,0.00054794,120]
[326815309,1715424780642,-500.0,0.00054794,120]
[326815310,1715424780665,-500.0,0.00054794,120]
[326815311,1715424780687,-459.34850781,0.00054794,120]
[326815312,1715424780710,-500.0,0.00054794,120]
[326815313,1715424780733,-500.0,0.00054794,120]
[326815314,1715424780756,-721.56,0.00054794,120]
[326815315,1715424780779,-500.0,0.00054794,120]
[326815316,1715424780802,-500.0,0.00054794,120]
[326815317,1715424780824,-500.0,0.00054794,120]
[326815318,1715424780849,-500.0,0.00054794,120]
[326815319,1715424780871,-1362.24,0.00054794,120]
[326815320,1715424780894,-565.69290154,0.00054794,120]
[326815321,1715424780917,-500.0,0.00054794,120]
[326815322,1715424780940,-188.16395131,0.00054794,120]
[326815323,1715424780963,-1180.4,0.00054794,120]
[326815324,1715424780987,-540.70764073,0.00054794,120]
[326815325,1715424781010,-500.0,0.00054794,120]
[326815326,1715424781033,-500.0,0.00054794,120]
[326815327,1715424781056,-698.8,0.00054794,120]
[326815328,1715424781078,-500.0,0.00054794,120]
[326815329,1715424781100,-500.0,0.00054794,120]
[326815330,1715424781122,-654.35,0.00054794,120]
[326815331,1715424781145,-500.0,0.00054794,120]
[326815332,1715424781170,-500.0,0.00054794,120]
[326815333,1715424781194,-500.0,0.00054794,120]
[326815334,1715424781220,-1146.39,0.00054794,120]
[326815335,1715424781245,-500.0,0.00054794,120]
[326815336,1715424781270,-1027.58,0.00054794,120]
[326815337,1715424781294,-500.0,0.00054794,120]
[326815338,1715424781318,-500.0,0.00054794,120]
[326815339,1715424781341,-1068.23,0.00054794,120]
[326815340,1715424781371,-466.37356447,0.00054794,120]
[326815341,1715424781393,-1077.34,0.00054794,120]
[326815342,1715424781416,-500.0,0.00054794,120]
[326815343,1715424781439,-1061.87,0.00054794,120]
[326815344,1715424781461,-431.35141106,0.00054794,120]
[326815345,1715424781616,-500.0,0.00054794,120]
[326815346,1715424781640,-500.0,0.00054794,120]
[326815347,1715424781665,-649.64,0.00054794,120]
[326815348,1715424781689,-1196.72,0.00054794,120]
[326815349,1715424781713,-1250.42,0.00054794,120]
[326815350,1715424781739,-500.0,0.00054794,120]
[326815351,1715424781762,-500.0,0.00054794,120]
[326815352,1715424781785,-595.26,0.00054794,60]
[326815353,1715424781808,-1019.68,0.00054794,120]
[326815354,1715424781831,-500.0,0.00054794,120]
[326815355,1715424781854,-588.46,0.00054794,120]
[326815356,1715424781878,-500.0,0.00054794,120]
[326815357,1715424781901,-500.0,0.00054794,120]
[326815358,1715424781925,-500.0,0.00054794,120]
[326815359,1715424781949,-500.0,0.00054794,120]
[326815360,1715424781974,-500.0,0.00054794,120]
[326815361,1715424781998,-583.51,0.00054794,120]
[326815362,1715424782021,-500.0,0.00054794,120]
[326815363,1715424782046,-500.0,0.00054794,120]
[326815364,1715424782070,-500.0,0.00054794,120]
[326815365,1715424782093,-500.0,0.00054794,120]
[326815366,1715424782116,-226.20457183,0.00054794,120]
[326815367,1715424782139,-515.61,0.00054794,120]
[326815368,1715424782163,-500.0,0.00054794,120]
[326815369,1715424782185,-500.0,0.00054794,120]
[326815370,1715424782209,-500.0,0.00054794,120]
[326815371,1715424782231,-500.0,0.00054794,120]
[326815372,1715424782253,-500.0,0.00054794,120]
[326815373,1715424782275,-500.0,0.00054794,120]
[326815374,1715424782297,-833.61,0.00054794,120]
[326815375,1715424782320,-500.0,0.00054794,120]
[326815376,1715424782343,-522.1,0.00054794,120]
[326815377,1715424782365,-544.24,0.00054794,120]
[326815378,1715424782388,-952.33,0.00054794,120]
[326815379,1715424782410,-500.0,0.00054794,120]
[326815380,1715424782433,-447.37139396,0.00054794,120]
[326815381,1715424782455,-500.0,0.00054794,120]
[326815382,1715424782477,-246.13270611,0.00054794,120]
[326815383,1715424782500,-500.0,0.00054794,120]
[326815384,1715424782524,-5663.48761158,0.00054794,120]
[326815385,1715424859744,-5000.0,0.000239,9]
[326815386,1715424859772,-10107.96635647,0.0003,7]
[326815387,1715424859795,-2571.0,0.0003,5]
[326815388,1715424859825,-17202.6218352,0.0003,10]
[326815389,1715424859851,-3542.69837252,0.00035455,14]
[326815390,1715424859876,-3443.91443703,0.00036,14]
[326815391,1715424859900,-10656.19881688,0.00037,5]
[326815392,1715424859926,-16397.98859612,0.00038226,7]
[326815393,1715424859949,-5317.21436528,0.00039,10]
[326815394,1715424859974,-2000.0,0.0004,10]
[326815395,1715424859996,-1038.38389239,0.0004,15]
[326815396,1715424860020,-195.63466489,0.0004,15]
[326815397,1715424860045,-462.15644443,0.00041096,30]
[326815398,1715424860070,-151.0,0.00041424,7]
[326815399,1715424860094,-151.0,0.00041424,7]
[326815400,1715424860118,-1004.775171,0.000415,36]
[326815401,1715424860141,-1049.38188499,0.000425,30]
[326815402,1715424860165,-4000.0,0.00045,7]
[326815403,1715424860187,-2000.0,0.00045,10]
[326815404,1715424860210,-464.6052064,0.00045,120]
[326815405,1715424860242,500.0,0.00041096,31]
[326815406,1715424860269,500.0,0.00041096,31]
[326815407,1715424860310,500.0,0.00041096,31]
[326815408,1715424860337,500.0,0.00041096,31]
[326815409,1715424860364,500.0,0.00041096,31]
[326815410,1715424860390,500.0,0.00041096,31]
[326815411,1715424860445,500.0,0.00041096,31]
[326815412,1715424860476,500.0,0.00041096,31]
[326815413,1715424860504,500.0,0.00041096,31]
[326815414,1715424860535,236.59633743,0.00041096,31]